Cogmind - Beta 13 @@@ ROGUE MODE // 2024.02.28 @ 12:40:58 Player: Waax Result: Destroyed by as-69209 with Assembled Heavy Rifle Performance ------------- Evolutions (0) 0 Regions Visited (4) 800 Robots Destroyed (13) 65 Value Destroyed (226) 226 Prototype IDs (0) 0 Alien Tech Used (0) 0 Bonus (0) 0 TOTAL SCORE: 1091 Bonus ------- None Cogmind --------- Core Integrity 0/250 Matter 243/300 Energy 100/100 System Corruption 0% Temperature Cool (0) Movement Core (250) Ox4 Location -9/Mines Parts ------- > --- POWER (1) -------- (None) > --- PROPULSION (2) --- (None) > --- UTILITY (2) ------ Medium Storage Unit Light Armor Plating > --- WEAPON (2) ------- (None) > --- INVENTORY (10) --- Fission Core Fission Core Light Fission Core Improved Terrain Scanner Seismic Detector Authchip [Device] Peak State ------------ > --- POWER ------------ Light Ion Engine > --- PROPULSION ------- Light Treads Aluminum Leg > --- UTILITY ---------- Small Storage Unit Improved Terrain Scanner > --- WEAPON ----------- EM Pulse Gun Assault Rifle > --- INVENTORY -------- Light Ion Engine Light Ion Engine Light Treads Aluminum Leg Seismic Detector [Rating: 9] Favorites ----------- Power Light Ion Engine Engine Light Ion Engine Propulsion Aluminum Leg Treads Light Treads Leg Aluminum Leg Wheel Wheel Utility Medium Storage Unit Device Improved Terrain Scanner Storage Medium Storage Unit Processor Transport Network Coupler Protection Light Armor Plating Weapon Grenade Launcher Energy Gun EM Pulse Gun Ballistic Gun Assault Rifle Launcher Grenade Launcher Special Weapon Mining Laser Build | -11 -10 -10 -10 -9 ------- Run | Yrd Mat Min Exi Min Slots Evolved . | . . . . . Power . | . . . . . Propulsion . | . . . . . Utility . | . . . . . Weapon . | . . . . . Parts Attached 29 | 11 6 1 1 10 Power 4 | 1 1 . . 2 Engine 4 | 1 1 . . 2 Core . | . . . . . Reactor . | . . . . . Propulsion 6 | 3 3 . . . Treads 2 | 1 1 . . . Leg 3 | 1 2 . . . Wheel 1 | 1 . . . . Hover . | . . . . . Flight . | . . . . . Utility 12 | 3 . 1 1 7 Device 1 | 1 . . . . Storage 8 | 2 . 1 1 4 Processor 1 | . . . . 1 Hackware . | . . . . . Protection 2 | . . . . 2 Artifact . | . . . . . Weapon 7 | 4 2 . . 1 Energy Gun 3 | 2 . . . 1 Energy Cannon . | . . . . . Ballistic Gun 2 | 2 . . . . Ballistic Cannon . | . . . . . Launcher 1 | . 1 . . . Special Weapon 1 | . 1 . . . Impact Weapon . | . . . . . Slashing Weapon . | . . . . . Piercing Weapon . | . . . . . Special Melee Weapon . | . . . . . Unidentified Prototypes . | . . . . . Parts Lost 7 | . . . . 7 Power 2 | . . . . 2 Propulsion 2 | . . . . 2 Utility . | . . . . . Weapon 3 | . . . . 3 Highest Loss Streak 6 | . . . . 6 To Critical Strikes . | . . . . . Average Slot Usage (%) 94 | . 75 100 100 87 Engine 13 | . 9 14 14 13 Leg 26 | . 16 28 28 26 Storage 25 | . 28 28 28 18 Processor 1 | . . . . 6 Energy Gun 1 | . 4 . . 5 Launcher 12 | . 6 14 14 12 Special Weapon 9 | . . 14 14 . Naked Turns . | . . . . . Heaviest Build 48 | 13 13 18 19 48 Greatest Support 20 | 20 20 20 20 20 Greatest Overweight (x) 4 | 1 2 . . 4 Average Overweight (x) . | . . . . . Largest Inventory Capacity 25 | 8 8 10 10 25 Average Capacity 9 | 7 8 9 10 10 Most Carried 10 | 6 8 8 10 10 Average Carried 8 | 4 5 7 9 8 Final Capacity 10 | 8 8 10 10 10 Final Carried 10 | 6 6 8 10 6 Class Distribution -------------------- 100% | Mutant Dominant Class ---------------- Mutant | -10/Materials Mutant | -10/Mines Mutant | -10/Exiles Mutant | -9/Mines Resources | -11 -10 -10 -10 -9 ----------- Run | Yrd Mat Min Exi Min Matter Collected 514 | 370 18 22 . 104 Remotely . | . . . . . Salvage Created 340 | 176 18 . . 146 Parts 24 | 13 1 . . 10 Haulers Intercepted . | . . . . . Recyclers Shooed 1 | 1 . . . . Parts Field Recycled . | . . . . . Retrieved Matter . | . . . . . Parts Self-Destructed . | . . . . . Prevented . | . . . . . Kills | -11 -10 -10 -10 -9 ------- Run | Yrd Mat Min Exi Min Combat Hostiles Destroyed 5 | . . . . 5 AOE 5 | . . . . 5 Classes Destroyed 5 | 3 . . . 2 Worker 4 | 2 1 . . 1 Tunneler 3 | 3 . . . . Recycler 1 | 1 . . . . Grunt 4 | . . . . 4 Brawler 1 | . . . . 1 Best Kill Streak 3 | 2 1 . . 3 Combat Bots Only 3 | . . . . 3 Max Kills in Single Turn 1 | 1 1 . . 1 Gunslinging . | . . . . . Exploded 1 | . . . . 1 Melee . | . . . . . Uniques/NPCs Destroyed . | . . . . . Combat | -11 -10 -10 -10 -9 -------- Run | Yrd Mat Min Exi Min Hostile Shots Fired 63 | . . . . 63 Missed 21 | . . . . 21 Damage Taken 843 | . . . . 843 Core 250 | . . . . 250 Absorbed by Shields . | . . . . . Core Remaining (%) 100 | 100 . . . . Volleys Fired 33 | 17 3 2 . 11 Largest 2 | 2 2 1 . 1 Hottest 100 | 70 60 100 . 50 Shots Fired 52 | 34 5 2 . 11 Gun 40 | 34 4 . . 2 Cannon . | . . . . . Launcher 10 | . 1 . . 9 Special 2 | . . 2 . . Kinetic 19 | 17 2 . . . Thermal 12 | 8 . 2 . 2 Explosive 10 | . 1 . . 9 Electromagnetic 11 | 9 2 . . . Robot Hit Streak 7 | 5 2 . . 7 Robot Miss Streak 3 | 3 1 . . 2 Penetration Max . | . . . . . Secondary Targets . | . . . . . Shots Hit Robots 25 | 18 2 . . 5 Core Hits 20 | 7 2 . . 11 Critical Kills . | . . . . . Critical Parts Destroyed . | . . . . . Critical Strikes 1 | 1 . . . . Burn 1 | 1 . . . . Melee Attacks . | . . . . . Impact . | . . . . . Slashing . | . . . . . Piercing . | . . . . . Sneak Attacks . | . . . . . Combat Hostiles . | . . . . . Follow-up Attacks . | . . . . . Damage Inflicted 713 | 247 86 . . 380 Guns 269 | 247 22 . . . Cannons . | . . . . . Explosions 444 | . 64 . . 380 Melee . | . . . . . Ramming . | . . . . . Kinetic 126 | 116 10 . . . Thermal 62 | 62 . . . . Explosive 444 | . 64 . . 380 Electromagnetic 81 | 69 12 . . . Impact . | . . . . . Slashing . | . . . . . Piercing . | . . . . . Highest Corruption . | . . . . . Average Corruption . | . . . . . Corruption Purged . | . . . . . Corruption Blocked . | . . . . . Overload Shots . | . . . . . Overflow Damage 2 | . . . . 2 Projectiles . | . . . . . Explosions 2 | . . . . 2 Melee . | . . . . . Knockbacks . | . . . . . Impact . | . . . . . Kinetic . | . . . . . Secondary . | . . . . . Self-Inflicted Damage 99 | . . . . 99 Shots 4 | . . . . 4 Rammed . | . . . . . Targets Rammed . | . . . . . Kicked . | . . . . . Crushed . | . . . . . Highest Temperature 80 | 27 . 22 . 80 Average Temperature 18 | 13 . 11 . 37 Received Heat Transfer 217 | . . . . 217 Siege Activations . | . . . . . Robots Corrupted . | . . . . . Combat Hostiles . | . . . . . Parts Fried . | . . . . . Impact Corruptions . | . . . . . Robots Melted . | . . . . . Combat Hostiles . | . . . . . Parts Melted . | . . . . . Heat Transferred 259 | 259 . . . . Parts Sabotaged . | . . . . . Parts Stolen . | . . . . . Parts Stripped . | . . . . . Power Chain Reactions . | . . . . . Alert | -11 -10 -10 -10 -9 ------- Run | Yrd Mat Min Exi Min Peak Influence 144 | 30 49 20 . 144 Initial 19 | . 19 18 . . Average 58 | 19 29 18 . 113 Maximum Alert Level . | . . . . . Low Security (%) 100 | 100 100 100 . 100 Level 1 . | . . . . . Level 2 . | . . . . . Level 3 . | . . . . . Level 4 . | . . . . . Level 5 . | . . . . . High Security . | . . . . . Max Security . | . . . . . Squads Dispatched 1 | . 1 . . . Investigation . | . . . . . Extermination . | . . . . . Reinforcement 1 | . 1 . . . Assault . | . . . . . Garrison . | . . . . . Intercept . | . . . . . Searches Triggered . | . . . . . Construction Impeded . | . . . . . Haulers Reinforced . | . . . . . Active Scanning Responses . | . . . . . Cargo Convoy Interrupts . | . . . . . Stealth | -11 -10 -10 -10 -9 --------- Run | Yrd Mat Min Exi Min Distress Signals . | . . . . . Communications Jammed . | . . . . . Distress Signals . | . . . . . Times Spotted 23 | . . . . 23 Peak Tracking Total 19 | . 1 . . 19 Tactical Retreats 2 | . . . . 2 Traps | -11 -10 -10 -10 -9 ------- Run | Yrd Mat Min Exi Min Traps Triggered 5 | . 5 . . . Indirectly . | . . . . . Trap Hack Attempts . | . . . . . Triggered . | . . . . . Disarmed . | . . . . . Reprogrammed . | . . . . . Reused . | . . . . . Traps Extracted . | . . . . . Installed . | . . . . . Triggered . | . . . . . Machines | -11 -10 -10 -10 -9 ---------- Run | Yrd Mat Min Exi Min Machines Disabled 1 | . 1 . . . Max in Single Turn 1 | . 1 . . . Machines Repaired . | . . . . . Machines Dismantled . | . . . . . Machines Sabotaged . | . . . . . Overloaded Fab Kills . | . . . . . Hacking | -11 -10 -10 -10 -9 --------- Run | Yrd Mat Min Exi Min Machines Accessed 4 | . . . 4 . Terminals . | . . . . . Fabricators . | . . . . . Repair Stations . | . . . . . Recycling Units . | . . . . . Scanalyzers . | . . . . . Garrison Access . | . . . . . Total Hacks 49 | . . . 49 . Successful 49 | . . . 49 . Failed . | . . . . . Catastrophic . | . . . . . Database Lockouts . | . . . . . Manual 6 | . . . 6 . Terminals . | . . . . . Fabricators . | . . . . . Repair Stations . | . . . . . Recycling Units . | . . . . . Scanalyzers . | . . . . . Garrison Access . | . . . . . Terminal Hacks 49 | . . . 49 . Record 49 | . . . 49 . Fabricator Hacks . | . . . . . Repair Station Hacks . | . . . . . Recycling Unit Hacks . | . . . . . Scanalyzer . | . . . . . Garrison Access Hacks . | . . . . . Unauthorized Hacks . | . . . . . Terminals . | . . . . . Fabricators . | . . . . . Repair Stations . | . . . . . Recycling Units . | . . . . . Scanalyzers . | . . . . . Garrison Access . | . . . . . Data Cores Recovered . | . . . . . Used . | . . . . . Hacking Detections . | . . . . . Full Trace Events . | . . . . . Feedback Events . | . . . . . Feedback Blocked . | . . . . . Robot Schematics Acquired . | . . . . . Robots Built . | . . . . . Authchips . | . . . . . Time . | . . . . . Total Robot Build Rating . | . . . . . Part Schematics Acquired . | . . . . . Parts Built . | . . . . . Authchips . | . . . . . Time . | . . . . . Total Part Build Rating . | . . . . . Parts Repaired . | . . . . . Time . | . . . . . Parts Recycled . | . . . . . Recycled Matter . | . . . . . Retrieved Matter . | . . . . . Retrieved Components . | . . . . . Parts Scanalyzed . | . . . . . Part Schematics Acquired . | . . . . . Parts Damaged . | . . . . . Bothacking | -11 -10 -10 -10 -9 ------------ Run | Yrd Mat Min Exi Min Used RIF Installer . | . . . . . Robots Hacked . | . . . . . Non-combat . | . . . . . Combat . | . . . . . Robot Hacks Applied . | . . . . . Relay Couplers Released . | . . . . . Fabnet Peak Effective % . | . . . . . Robots Rewired . | . . . . . Allies Hacked . | . . . . . Hacks Repelled . | . . . . . Allies | -11 -10 -10 -10 -9 -------- Run | Yrd Mat Min Exi Min Total Allies . | . . . . . Largest Group . | . . . . . Highest-Rated Group . | . . . . . Highest-Rated Ally . | . . . . . Total Orders . | . . . . . Ally Attacks . | . . . . . Total Damage . | . . . . . Kills . | . . . . . Allies Corrupted . | . . . . . Allies Melted . | . . . . . Intel | -11 -10 -10 -10 -9 ------- Run | Yrd Mat Min Exi Min Robot Analysis Total . | . . . . . Derelict Logs Recovered 1 | . . . . 1 Drone Launches . | . . . . . Drone Recoveries . | . . . . . Exploration | -11 -10 -10 -10 -9 ------------- Run | Yrd Mat Min Exi Min Turns Passed 2272 | 363 186 96 1201 426 Spaces Moved 1693 | 183 132 71 997 310 Core 61 | 17 41 . . 3 Treads 180 | 145 35 . . . Legs 1447 | 16 56 71 997 307 Wheels 5 | 5 . . . . Hover . | . . . . . Flight . | . . . . . Fastest Speed 50 | 50 100 120 120 120 Average Speed 123 | 145 126 120 120 123 Slowest Speed 260 | 190 160 120 120 260 Overloaded Moves . | . . . . . Propulsion Burnouts . | . . . . . Robots Hopped . | . . . . . Cave-ins Triggered . | . . . . . Exploration Rate (%) 41 | 10 21 22 92 64 Regions Visited 4 Branch Regions 3 Pre-discovered Areas 1 | . . . 1 . Known Exits Taken . | . . . . . Unknown Exits Taken 4 | 1 1 1 1 . Scrap Searched 3 | . . 1 . 2 Spaces Dug 2 | . . 2 . . Terrain Destroyed 44 | . 8 2 . 34 Melee . | . . . . . Projectile 2 | . . 2 . . AOE 42 | . 8 . . 34 Terrain Rammed . | . . . . . Walls Destroyed . | . . . . . Machines Disabled . | . . . . . Actions | -11 -10 -10 -10 -9 --------- Run | Yrd Mat Min Exi Min Total 1806 | 243 145 75 1001 342 Wait 19 | 19 . . . . Move 1689 | 182 131 70 996 310 Hop . | . . . . . Pick Up 26 | 11 5 2 3 5 Fast Attach 6 | 5 1 . . . Attach 9 | 2 5 . . 2 Detach . | . . . . . Swap 14 | 4 . 1 1 8 Drop 10 | 3 . . 1 6 Fire 33 | 17 3 2 . 11 Melee . | . . . . . Ram . | . . . . . Kick . | . . . . . Crush . | . . . . . Escape Stasis . | . . . . . Rewire . | . . . . . Trap . | . . . . . Miscellaneous . | . . . . . Route ------- -11/Scrapyard -10/Materials -10/Mines -10/Exiles (discovered 2 exits: [*Min x2]) -9/Mines History --------- Turn | Location | Event 17 | -11/Scrapyard | Discovered new exit (range 15) 364 | -11/Scrapyard | Entered Materials 365 | -10/Materials | Build established: Mutant 531 | -10/Materials | Discovered new exit (range 8) 550 | -10/Materials | Entered Mines 638 | -10/Mines | Deemed a non-threat by the Exiles lab entrance 639 | -10/Mines | Discovered new exit (range 5) 646 | -10/Mines | Entered Exiles 696 | -10/Exiles | Discovered new exit (range 14) 726 | -10/Exiles | Met 8R-AWN 756 | -10/Exiles | Met EX-HEX 821 | -10/Exiles | Met EX-BIN 877 | -10/Exiles | Met EX-DEC 888 | -10/Exiles | Learned location of Zion (-7) 1275 | -10/Exiles | Discovered new exit (range 14) 1407 | -10/Exiles | Visited The Gauntlet 1847 | -10/Exiles | Entered Mines 2033 | -9/Mines | Learned Materials emergency access door positions 2215 | -9/Mines | Assembled infested the area 2220 | -9/Mines | Assisted by a Guerilla fighting off Assembled 2264 | -9/Mines | Core integrity fell below 50% 2269 | -9/Mines | Core integrity fell below 20% 2273 | -9/Mines | Destroyed by as-69209 with Assembled Heavy Rifle Last Messages --------------- 02237_ as-39953 suffers critical hit (Destroy). 02237_ as-39953 destroyed. 02237_ HV Slug penetrates Wall. 02239_ HV Slug penetrates as-49261. 02239_ as-49261 knocked back. 02241_ as-10879 knocked back. 02243_ HV Slug penetrates as-79803. 02243_ as-79803 suffers critical hit (Destroy). 02243_ as-79803 destroyed. 02243_ Aluminum Leg destroyed. 02245_ as-23037 destroyed. 02245_ Med. Laser destroyed. 02247_ HV Slug penetrates as-14708. 02247_ as-14708 suffers critical hit (Destroy). 02247_ as-14708 destroyed. 02247_ as-95159 suffers critical hit (Destroy). 02251_ AM-S59(h) destroyed. 02254_ Lgt. Ion Engine destroyed. 02265_ Aluminum Leg destroyed. 02265_ Discarded Transport Network Coupler. Map ----- +----------------------------------------------------+ | | | | | | | | | | | | | | | | | | | | | | | | | | | | | | | | | | | | | | | ?????????????????????????????????????????????????? | | ?????????????????????????????????????????????????? | | ?????####?????????????####???????????????????????? | | ###### #????####??#### ##??????????????????????? | | %% ##??## #### a #??????????????????????? | | % %%% #### aaaaa ######?????????????????? | | #### a a a a a @ #?????????????????? | | ##??# !% """ #### #?????????????????? | | ????## """ ##??####### #?????????????????? | | ?????## """ #?????????# #?????????????????? | | ??????# #?????????# #?????????????????? | | ??????## #?????????# #?????????????????? | | ???????## ## ######?????# #?????????????????? | | ????????####### #### #?????# #?????????????????? | | ??????????????###### #?????# #?????????????????? | | ?????????????????## ##????# #?????????????????? | | ????????????????## ##???# ##????????????????? | | ??????????????### ##?## ##???????????????? | | ??????????????# ### #???????????????? | | ??????????????# #???????????????? | | ??????????????# ## #???????????????? | | ??????????????## ##### #???????????????? | | ???????????????######???# #???????????????? | | ????????????????????????# #??#######??????? | | ????????????????????????## ##?## ##?????? | | ?????????????????????????## #??# #?????? | | ??????????????????????????## #### #??????? | | ??????????????????????????## ## ####??????? | | ????????????????????????### ##?????????? | | ???????????????????????## ! #??????????? | | ???????????????????????# =! ##??????????? | +----------------------------------------------------+ Best States ------------- Heat Dissipation 25 Energy Generation 10 Energy Capacity 125 Matter Stores 350 Matter Capacity 400 Sight Range 16 Terrain Scan Range 16 Terrain Scan Density 10 Armor Coverage 150 Evasion (%) 55 Recoil Reduction 1 Authchip Count 1 Item Schematics ----------------- None Robot Schematics ------------------ None Fabricated ------------ Nothing Alien Tech Used ----------------- None Achievements -------------- Librarian Tourist Challenges ------------ None Game ------ Seed OmegaMultinovaCarapace Manual? 0 Play Time 00:28:08 Cumulative 1.6 hours Start 2024.02.26 @ 22:22:37 End 2024.02.28 @ 12:40:58 Sessions 1 Manual Loads 0 Difficulty Rogue Special Mode None Game No. 4 Rogue 4 Adventurer 0 Explorer 0 Win Type - Total 0 Types 0/0/0/0/0/0/0/0/0 Lore% 7 Gallery% 3 Achievement% 3 Wizard Run 0 Options --------- Layout 2 ASCII 0 Keyboard 0 Movement Arrows Keybinds 0 Fullscreen 2 Font 16/Swanston Map View 27x23 Zoom Use 91% Tactical HUD 1 Map Filters NONE Filters NONE Steam 1 RUN: 04eb95a9-de87-4316-82f0-2444542b2535